bitfinex/quotes_SOLUSD_20250424
["timestamp","ask_amount","ask_price","bid_price","bid_amount"]
[1745502795205,0.063,148.34,148.32,20.7703084]
[1745502795596,6.7399743,148.37,148.32,20.7703084]
[1745502795814,19.1106084,148.37,148.32,20.7703084]
[1745502796019,25.85079056,148.37,148.32,20.7703084]
[1745502796395,19.1106084,148.37,148.32,20.7703084]
[1745502796590,19.1106084,148.36,148.32,1.6597]
[1745502797024,19.1106084,148.35,148.32,1.6597]
[1745502797395,19.1106084,148.33,148.28,20.7601084]
[1745502797729,14.6,148.33,148.3,19.1106084]
[1745502798225,14.6,148.33,148.29,19.1106084]
[1745502798404,14.6,148.33,148.3,19.1106084]
[1745502799219,14.6,148.33,148.31,19.1106084]
[1745502799531,19.1106084,148.32,148.28,27.50408949]
[1745502799834,40.45241359,148.33,148.28,27.50408949]
[1745502800007,33.7106084,148.33,148.28,27.50408949]
[1745502800328,40.45240194,148.33,148.28,27.50408949]
[1745502800698,40.45240194,148.33,148.29,19.1106084]
[1745502801210,19.1106084,148.32,148.28,20.7601084]
[1745502801892,19.1106084,148.32,148.28,1.6495]
[1745502802115,19.1106084,148.31,148.28,1.6495]
[1745502802417,19.1106084,148.29,148.24,1.616]
[1745502802592,19.1106084,148.29,148.25,19.1106084]
[1745502803302,19.1106084,148.3,148.25,25.85593352]
[1745502803500,25.85391135,148.3,148.25,19.1106084]
[1745502803801,19.1106084,148.3,148.25,25.85596351]
[1745502804027,25.8537562,148.3,148.25,19.1106084]
[1745502804198,19.1106084,148.29,148.24,8.3617051]
[1745502804518,19.1106084,148.31,148.26,19.1106084]
[1745502804723,19.1106084,148.32,148.27,19.1106084]
[1745502805303,19.1106084,148.31,148.27,25.85504569]
[1745502805517,19.1106084,148.32,148.27,25.85504569]
[1745502805922,19.1106084,148.31,148.27,25.85504569]
[1745502806333,14.6,148.33,148.28,19.1106084]
[1745502806628,14.6,148.33,148.29,19.1106084]
[1745502806823,40.45249071,148.33,148.28,19.1106084]
[1745502806996,19.1106084,148.32,148.28,19.1106084]
[1745502807195,33.7106084,148.33,148.28,19.1106084]
[1745502807527,40.45233844,148.33,148.28,19.1106084]
[1745502807731,14.6,148.33,148.29,19.1106084]
[1745502808031,14.6,148.33,148.3,19.1106084]
[1745502808197,14.6,148.33,148.29,19.1106084]
[1745502808398,14.6,148.33,148.3,19.1106084]
[1745502808828,14.6,148.33,148.29,19.1106084]
[1745502809998,14.6,148.33,148.3,19.1106084]
[1745502810497,14.6,148.33,148.32,19.1106084]
[1745502810810,19.1106084,148.36,148.32,19.1106084]
[1745502811620,14.48,148.37,148.33,19.1106084]
[1745502812324,40.33061349,148.37,148.32,19.1106084]
[1745502812501,19.1106084,148.36,148.31,27.41104207]
[1745502813023,19.1106084,148.36,148.32,19.1106084]
[1745502813208,33.5906084,148.37,148.32,19.1106084]
[1745502813409,14.48,148.37,148.34,19.1106084]
[1745502813608,14.48,148.37,148.35,19.1106084]
[1745502814130,14.48,148.37,148.31,25.15701785]
[1745502814429,40.33053081,148.37,148.32,19.1106084]
[1745502814615,19.1106084,148.35,148.31,1.5578]
[1745502814825,19.1106084,148.33,148.29,13.28148219]
[1745502815014,19.1106084,148.34,148.29,32.39209059]
[1745502815209,19.1106084,148.34,148.29,6.5381]
[1745502815417,19.1106084,148.33,148.29,6.5381]
[1745502815729,19.1106084,148.33,148.29,13.28157632]
[1745502815932,19.1106084,148.34,148.29,32.39218472]
[1745502816618,19.1106084,148.33,148.29,32.39218472]
[1745502816819,19.1106084,148.34,148.29,32.39218472]
[1745502817014,19.1106084,148.34,148.3,19.1106084]
[1745502817518,19.1106084,148.34,148.29,32.39218472]
[1745502818924,19.1106084,148.34,148.3,19.1106084]
[1745502819146,19.1106084,148.35,148.3,19.1106084]
[1745502819634,14.48,148.34,148.3,19.1106084]
[1745502819831,14.48,148.34,148.32,19.1106084]
[1745502820220,14.48,148.34,148.33,19.1106084]
[1745502820428,14.48,148.34,148.29,30.14043396]
[1745502820630,14.48,148.34,148.32,19.1106084]
[1745502820824,14.48,148.34,148.33,19.1106084]
[1745502821025,0.063,148.38,148.33,20.7201084]
[1745502821209,0.063,148.38,148.35,19.1106084]
[1745502821415,0.063,148.38,148.34,19.1106084]
[1745502821934,0.063,148.38,148.35,19.1106084]
[1745502822341,19.1736084,148.38,148.34,19.1106084]
[1745502822721,0.063,148.38,148.35,19.1106084]
[1745502824440,19.1736084,148.38,148.34,19.1106084]
[1745502824843,0.063,148.38,148.34,25.85182957]
[1745502825145,0.063,148.38,148.35,19.1106084]
[1745502825521,0.063,148.38,148.36,19.1106084]
[1745502825722,0.063,148.38,148.34,19.1106084]
[1745502825951,19.1736084,148.38,148.33,27.46165288]
[1745502826455,19.1106084,148.36,148.31,6.74231287]
[1745502826752,19.1106084,148.37,148.32,19.1106084]
[1745502827053,19.1106084,148.37,148.32,25.85241277]
[1745502827849,25.85059111,148.37,148.32,25.85241277]
[1745502828021,25.85059111,148.37,148.32,19.1106084]
[1745502828221,19.1106084,148.37,148.32,25.8527469]
[1745502828458,25.85063024,148.37,148.32,25.8527469]
[1745502828932,19.1106084,148.37,148.32,25.8527469]
[1745502829132,25.85054775,148.37,148.32,25.8527469]
[1745502829439,19.1106084,148.36,148.32,19.1106084]
[1745502830032,25.85054775,148.37,148.32,25.85271736]
[1745502830233,25.91306282,148.38,148.33,19.1106084]
[1745502830431,19.1106084,148.37,148.33,19.1106084]
[1745502830627,6.80245442,148.38,148.33,19.1106084]
[1745502830838,0.063,148.38,148.35,19.1106084]
[1745502831226,0.063,148.38,148.34,19.1106084]
[1745502831227,19.1736084,148.38,148.34,19.1106084]
[1745502831537,19.1736084,148.38,148.33,19.1106084]
[1745502831929,19.1736084,148.38,148.34,19.1106084]
[1745502832128,0.063,148.38,148.35,19.1106084]
[1745502832325,0.063,148.38,148.34,19.1106084]
[1745502832531,19.1736084,148.38,148.34,19.1106084]
[1745502832933,19.1736084,148.38,148.33,18.64964886]
[1745502833136,25.91311027,148.38,148.33,19.1106084]
[1745502833431,19.1736084,148.38,148.33,19.1106084]
[1745502833632,0.063,148.38,148.34,19.1106084]
[1745502834234,25.913353,148.38,148.32,6.74217907]
[1745502834454,19.1106084,148.37,148.33,19.1106084]
[1745502834754,19.1736084,148.38,148.34,19.1106084]
[1745502835253,25.91306822,148.38,148.34,19.1106084]
[1745502835448,19.1736084,148.38,148.34,19.1106084]
[1745502835747,0.063,148.38,148.34,19.1106084]
[1745502836137,0.063,148.38,148.34,25.85187789]
[1745502837131,0.063,148.38,148.36,19.1106084]
[1745502837335,0.063,148.38,148.35,25.85137799]
[1745502838258,0.063,148.38,148.34,25.85168312]
[1745502839460,0.063,148.38,148.33,6.74172453]
[1745502839634,0.063,148.38,148.34,19.1106084]
[1745502840957,0.063,148.38,148.34,25.85179656]
[1745502841662,0.063,148.38,148.35,19.1106084]
[1745502842636,19.1736084,148.38,148.33,19.1106084]
[1745502842950,25.85064289,148.37,148.32,19.1106084]
[1745502843157,25.85064289,148.37,148.32,25.85277525]
[1745502843457,19.1106084,148.37,148.32,25.85277525]
[1745502843648,25.85055246,148.37,148.33,19.1106084]
[1745502843957,25.91327441,148.38,148.33,19.1106084]
[1745502844841,0.063,148.38,148.33,6.74154231]
[1745502845048,0.063,148.38,148.36,19.1106084]
[1745502845246,0.063,148.38,148.35,19.1106084]
[1745502845555,12.2735314,148.38,148.33,18.95207371]
[1745502845756,12.2735314,148.38,148.33,12.2105314]
[1745502845757,19.01305268,148.38,148.33,12.2105314]
[1745502846055,12.2105314,148.37,148.32,18.95252813]
[1745502846250,0.063,148.38,148.33,12.2105314]
[1745502846458,19.01300576,148.38,148.33,12.2105314]
[1745502847059,19.01300576,148.38,148.32,6.74199673]
[1745502847244,12.2105314,148.37,148.32,18.95252813]
[1745502847556,19.01300576,148.38,148.33,12.2105314]
[1745502847755,12.2105314,148.36,148.29,34.0997]
[1745502847958,12.2105314,148.35,148.29,34.0997]
[1745502848130,12.2105314,148.36,148.31,12.2105314]
[1745502848668,12.2105314,148.33,148.27,18.64964886]
[1745502848960,12.2105314,148.33,148.28,12.2105314]
[1745502849179,12.2105314,148.31,148.26,1.6347]
[1745502849336,12.2105314,148.31,148.26,13.8452314]
[1745502849664,12.2105314,148.32,148.27,12.2105314]
[1745502850241,12.2105314,148.31,148.26,8.37944817]
[1745502850475,12.2105314,148.32,148.27,12.2105314]
[1745502850841,12.2105314,148.33,148.28,12.2105314]
[1745502851167,33.23180249,148.34,148.29,12.2105314]
[1745502852047,26.4905314,148.34,148.29,12.2105314]
[1745502852248,26.4905314,148.34,148.29,18.95398452]
[1745502853264,12.2105314,148.33,148.26,1.6347]
[1745502853468,12.2105314,148.32,148.27,12.2105314]
[1745502853766,26.4905314,148.34,148.29,12.2105314]
[1745502853940,12.2105314,148.33,148.29,12.2105314]
[1745502854270,12.2105314,148.33,148.28,18.95421208]
[1745502854463,12.2105314,148.33,148.29,12.2105314]
[1745502856873,21.02132438,148.34,148.29,12.2105314]
[1745502857069,12.2105314,148.33,148.29,12.2105314]
[1745502857263,12.2105314,148.33,148.28,18.95421208]
[1745502857661,12.2105314,148.33,148.28,12.2105314]
[1745502857858,21.02132438,148.34,148.28,12.2105314]
[1745502858155,12.2105314,148.33,148.28,12.2105314]
[1745502858359,12.2105314,148.32,148.26,8.37949384]
[1745502858553,12.2105314,148.32,148.27,12.2105314]
[1745502860152,12.2105314,148.32,148.27,18.95474603]
[1745502860473,12.2105314,148.33,148.28,12.2105314]
[1745502861979,12.2105314,148.33,148.28,18.95442806]
[1745502862295,18.95232928,148.33,148.28,18.95442806]
[1745502863155,12.2105314,148.33,148.28,18.95442806]
[1745502863956,26.4905314,148.34,148.29,12.2105314]
[1745502864190,14.28,148.34,148.31,12.2105314]
[1745502864392,14.28,148.34,148.32,12.2105314]
[1745502864783,14.28,148.34,148.33,12.2105314]
[1745502866395,14.28,148.34,148.3,6.74308833]
[1745502866597,12.2105314,148.32,148.27,8.32255382]
[1745502866755,21.0213779,148.34,148.27,8.32255382]
[1745502866756,33.2319093,148.34,148.29,12.2105314]
[1745502866962,33.2319093,148.34,148.3,12.2105314]
[1745502867169,14.28,148.34,148.3,12.2105314]
[1745502867400,33.23181108,148.34,148.28,18.64964886]
[1745502867588,12.2105314,148.33,148.29,12.2105314]
[1745502867769,12.2105314,148.33,148.28,18.64964886]
[1745502868066,12.2105314,148.33,148.29,12.2105314]
[1745502868571,14.28,148.34,148.3,12.2105314]
[1745502868774,14.28,148.34,148.31,12.2105314]
[1745502869266,14.28,148.34,148.3,12.2105314]
[1745502869761,33.23180355,148.34,148.28,18.64964886]
[1745502869966,12.2105314,148.33,148.28,37.60398697]
[1745502870368,33.23180355,148.34,148.29,12.2105314]
[1745502870574,33.23180355,148.34,148.29,18.95405496]
[1745502870984,14.28,148.34,148.29,18.95405496]
[1745502871189,14.28,148.34,148.3,12.2105314]
[1745502871374,19.0883606,148.33,148.28,25.39346556]
[1745502871571,19.0883606,148.33,148.28,44.48182616]
[1745502873287,19.0883606,148.32,148.28,6.7438167]
[1745502874270,19.0883606,148.32,148.27,44.48227448]
[1745502874666,14.28,148.34,148.3,19.0883606]
[1745502875074,19.0883606,148.32,148.27,25.39391388]
[1745502875282,19.0883606,148.32,148.27,6.74426502]
[1745502875463,19.0883606,148.32,148.27,25.83262562]
[1745502875979,19.0883606,148.32,148.27,6.74426502]
[1745502876192,19.0883606,148.3,148.26,6.1876]
[1745502876375,14.24,148.29,148.26,12.93248711]
[1745502876707,14.24,148.29,148.26,32.02084771]
[1745502877382,14.24,148.29,148.26,25.86324771]
[1745502880110,14.24,148.29,148.27,19.0883606]
[1745502880404,14.24,148.29,148.28,19.0883606]
[1745502880961,14.24,148.29,148.28,37.73800946]
[1745502881163,14.24,148.33,148.28,37.73800946]
[1745502881366,14.24,148.33,148.29,25.831627]
[1745502881596,33.3283606,148.33,148.29,6.7432664]
[1745502881785,19.0883606,148.32,148.29,6.7432664]
[1745502882499,19.0883606,148.32,148.28,6.74379545]
[1745502883198,19.0883606,148.32,148.28,6.24379545]
[1745502883495,19.0883606,148.32,148.28,5.74379545]
[1745502884303,19.0883606,148.32,148.27,25.83261786]
[1745502884484,19.0883606,148.32,148.27,6.74425726]
[1745502884675,19.0883606,148.3,148.26,6.77490206]
[1745502885172,14.24,148.29,148.26,6.77490206]
[1745502886595,14.24,148.29,148.26,0.03]
[1745502887486,19.0883606,148.28,148.26,0.03]
[1745502888080,25.83254467,148.28,148.26,0.03]
[1745502888274,19.0883606,148.27,148.26,0.03]
[1745502889882,25.83246262,148.28,148.26,0.03]
[1745502890080,40.07209359,148.29,148.26,0.03]
[1745502890703,14.24,148.29,148.26,0.03]
[1745502891214,14.24,148.29,148.26,19.1183606]
[1745502891591,14.24,148.29,148.26,0.03]
[1745502891999,33.3283606,148.29,148.26,0.03]
[1745502892382,19.0883606,148.28,148.26,0.03]
[1745502892584,19.0883606,148.27,148.26,0.03]
[1745502895697,25.83281328,148.27,148.26,0.03]
[1745502897213,25.97497485,148.27,148.26,0.03]
[1745502897519,51.83281328,148.27,148.26,0.03]
[1745502897887,66.07281328,148.27,148.26,0.03]
[1745502899610,65.99281328,148.27,148.26,0.03]
[1745502899781,19.0883606,148.27,148.26,0.03]
[1745502899987,33.2483606,148.27,148.26,0.03]
[1745502901289,59.13763022,148.27,148.26,0.03]
[1745502901691,108.21250195,148.27,148.26,0.03]
[1745502902887,26.0,148.24,148.23,0.03]
[1745502903110,0.14216157,148.23,148.22,1e-08]
[1745502903303,37.77126065,148.23,148.22,1e-08]
[1745502904110,19.12161179,148.23,148.22,1e-08]
[1745502905589,26.01964949,148.23,148.22,1e-08]
[1745502907516,26.01964949,148.23,148.21,0.03]
[1745502907821,59.29121524,148.22,148.21,0.03]
[1745502908411,66.03794307,148.22,148.21,0.03]
[1745502909124,66.03794307,148.22,148.18,0.03]
[1745502909125,26.14216157,148.19,148.18,0.03]
[1745502909419,0.14216157,148.18,148.09,25.88375317]
[1745502909596,19.27337681,148.18,148.09,25.88375317]
[1745502909797,19.27337681,148.18,148.08,25.88423317]
[1745502910000,37.92302567,148.18,148.07,27.56148155]
[1745502910192,33.29121524,148.17,148.07,8.43026631]
[1745502910408,40.04021976,148.17,148.07,27.56148155]
[1745502910613,40.18238133,148.17,148.1,6.75208503]
[1745502910796,40.18238133,148.17,148.08,19.13121524]
[1745502910991,40.18238133,148.17,148.08,25.88415318]
[1745502912415,40.18238133,148.17,148.08,6.75296701]
[1745502912610,40.18238133,148.17,148.08,25.88418225]
[1745502912916,40.18238133,148.17,148.08,6.75296701]
[1745502913499,40.18238133,148.17,148.07,27.56150414]
[1745502913705,26.0,148.14,148.07,1.6769]
[1745502913922,19.13121524,148.12,148.07,1.6769]
[1745502914116,33.31121524,148.12,148.07,1.6769]
[1745502914318,52.44243048,148.12,148.07,1.6769]
[1745502914515,59.19371322,148.12,148.07,1.6769]
[1745502915204,40.06249798,148.12,148.07,1.6769]
[1745502915928,33.31121524,148.12,148.07,1.6769]
[1745502916097,19.13121524,148.12,148.08,19.13121524]
[1745502916300,14.18,148.13,148.11,26.86326818]
[1745502916500,14.18,148.13,148.12,34.20079798]
[1745502917419,14.18,148.13,148.12,8.3183]
[1745502917631,14.18,148.13,148.12,8.41118274]
[1745502918126,14.18,148.13,148.12,27.54239798]
[1745502918325,14.18,148.13,148.12,8.41118274]
[1745502918511,14.18,148.13,148.12,27.54239798]
[1745502922020,14.18,148.17,148.12,44.42060483]
[1745502922217,14.18,148.17,148.15,19.13121524]
[1745502922825,14.18,148.17,148.14,19.13121524]
[1745502923215,14.18,148.19,148.16,19.13121524]
[1745502923525,14.18,148.21,148.18,20.65621524]
[1745502923726,14.18,148.21,148.2,19.13121524]
[1745502923911,14.18,148.21,148.2,25.87885356]
[1745502924109,14.18,148.21,148.18,1.525]
[1745502924298,19.13121524,148.19,148.14,26.94981524]
[1745502924506,19.13121524,148.16,148.14,1.6268]
[1745502924728,33.31121524,148.16,148.14,1.6268]
[1745502925029,33.31121524,148.16,148.11,20.11157114]
[1745502925410,33.31121524,148.16,148.11,26.86309538]
[1745502925616,14.18,148.16,148.12,19.13121524]
[1745502926131,14.18,148.16,148.13,6.75082697]
[1745502926307,14.18,148.16,148.12,19.13121524]
[1745502926701,19.13121524,148.15,148.11,0.9803559]
[1745502927310,19.13121524,148.13,148.11,0.9803559]
[1745502927511,19.13121524,148.14,148.11,0.9803559]
[1745502928610,25.88168274,148.14,148.11,0.9803559]
[1745502929311,19.13121524,148.13,148.11,0.9803559]
[1745502929514,19.13121524,148.12,148.11,0.9803559]
[1745502930034,25.88249798,148.12,148.11,0.9803559]
[1745502933330,40.06249798,148.12,148.11,0.9803559]
[1745502934712,33.31121524,148.12,148.11,0.9803559]
[1745502934940,14.18,148.13,148.11,0.9803559]
[1745502935235,0.14216157,148.11,148.07,0.03]
[1745502935442,19.13121524,148.08,148.07,0.03]
[1745502935646,33.31121524,148.08,148.07,0.03]
[1745502936242,40.06432166,148.08,148.07,0.03]
[1745502936452,33.31121524,148.08,148.07,0.03]
[1745502936652,14.18,148.08,148.07,0.03]
[1745502937512,33.31121524,148.08,148.07,0.03]
[1745502937735,14.18,148.08,148.07,0.03]
[1745502938149,210.62,148.12,148.07,19.16121524]
[1745502938445,14.18,148.13,148.11,19.13121524]
[1745502938627,14.18,148.13,148.08,6.75310642]
[1745502938824,14.18,148.13,148.11,19.13121524]
[1745502939026,20.9308528,148.13,148.07,0.03]
[1745502939213,20.9308528,148.13,148.09,19.13121524]
[1745502939414,19.13121524,148.11,148.07,0.03]
[1745502939739,19.13121524,148.09,148.07,0.03]
[1745502940049,14.18,148.08,148.07,0.03]
[1745502940213,20.93310642,148.08,148.07,0.03]
[1745502940418,14.18,148.08,148.07,0.03]
[1745502941244,40.06432166,148.08,148.07,0.03]
[1745502941421,33.31121524,148.08,148.07,0.03]
[1745502942241,40.06432166,148.08,148.07,0.03]
[1745502943315,33.31121524,148.08,148.07,0.03]
[1745502943515,40.06432166,148.08,148.07,0.03]
[1745502948322,40.20648323,148.08,148.07,0.03]
[1745502949129,40.06432166,148.08,148.07,0.03]
[1745502950139,21.07526799,148.08,148.07,0.03]
[1745502950340,40.20648323,148.08,148.07,0.03]
[1745502950645,59.1955369,148.08,148.06,0.03]
[1745502950837,38.40459205,148.07,148.06,0.03]
[1745502951036,14.18,148.08,148.06,0.03]
[1745502951332,33.31121524,148.08,148.06,0.03]
[1745502951538,19.13121524,148.07,148.06,0.03]
[1745502955554,25.88477774,148.07,148.06,0.03]
[1745502955771,14.18,148.08,148.06,0.03]
[1745502956050,19.13121524,148.07,148.06,0.03]
[1745502956946,25.88477774,148.07,148.06,0.03]
[1745502957532,26.02693931,148.07,148.06,0.03]
[1745502958953,25.88477774,148.07,148.06,0.03]
[1745502959138,26.02693931,148.07,148.06,0.03]
[1745502959848,25.88477774,148.07,148.06,0.03]
[1745502960357,14.18,148.07,148.06,0.03]
[1745502960854,14.18,148.08,148.06,19.16121524]
[1745502961058,14.18,148.08,148.07,19.13121524]
[1745502961258,14.18,148.1,148.08,6.75310642]
[1745502961560,14.18,148.1,148.07,25.88461839]
[1745502961854,33.31121524,148.1,148.06,0.03]
[1745502962059,14.18,148.1,148.06,6.78375447]
[1745502962225,14.18,148.1,148.06,25.91496971]
[1745502962427,19.13121524,148.09,148.06,0.03]
[1745502962649,14.18,148.1,148.06,0.03]
[1745502962650,33.31121524,148.1,148.06,0.03]
[1745502962834,14.18,148.1,148.07,19.13121524]
[1745502963457,14.18,148.1,148.07,25.8847176]
[1745502963657,19.13121524,148.09,148.06,0.03]
[1745502963866,33.31121524,148.1,148.06,0.03]
[1745502964162,33.31121524,148.1,148.06,6.78397218]
[1745502965148,14.18,148.1,148.06,25.91518742]
[1745502965459,14.18,148.1,148.07,25.88457695]
[1745502965956,14.18,148.1,148.07,6.75336171]
[1745502966556,14.18,148.1,148.07,19.13121524]
[1745502967335,14.18,148.1,148.06,6.78401864]
[1745502967530,14.18,148.1,148.07,19.13121524]
[1745502967931,14.18,148.1,148.06,19.16121524]
[1745502968257,14.18,148.1,148.07,19.13121524]
[1745502968765,14.18,148.1,148.07,6.75324896]
[1745502969350,14.18,148.1,148.07,25.8844642]
[1745502970156,14.18,148.1,148.08,19.13121524]
[1745502970452,14.18,148.11,148.08,19.13121524]
[1745502971265,14.18,148.11,148.09,19.13121524]
[1745502971556,14.18,148.11,148.1,19.13121524]
[1745502972440,14.18,148.11,148.08,19.13121524]
[1745502972635,14.18,148.11,148.07,25.88477774]
[1745502973131,14.18,148.11,148.09,19.13121524]
[1745502974152,14.18,148.11,148.08,19.13121524]
[1745502974452,33.31121524,148.11,148.06,25.91515274]
[1745502974950,14.18,148.11,148.06,6.7839375]
[1745502975157,14.18,148.11,148.07,19.13121524]
[1745502975777,40.06306001,148.11,148.06,19.16121524]
[1745502976064,19.13121524,148.09,148.06,0.03]
[1745502976231,19.13121524,148.1,148.06,0.03]
[1745502976430,19.13121524,148.09,148.06,0.03]
[1745502977456,25.88387763,148.09,148.06,0.03]
[1745502978048,25.88356458,148.1,148.06,0.03]
[1745502978371,19.13121524,148.1,148.06,19.16121524]
[1745502978861,40.06306652,148.11,148.06,19.16121524]
[1745502979058,20.93185128,148.11,148.07,19.13121524]
[1745502979259,20.93190702,148.11,148.07,19.13121524]
[1745502979460,40.06312226,148.11,148.06,25.91503196]
[1745502980157,14.18,148.11,148.08,19.13121524]
[1745502980341,14.18,148.11,148.06,6.78381672]
[1745502980342,14.18,148.11,148.09,19.13121524]
[1745502980544,14.18,148.11,148.08,19.13121524]
[1745502980944,14.18,148.11,148.1,19.13121524]
[1745502981160,14.18,148.11,148.07,1.6266]
[1745502981161,14.18,148.11,148.09,19.13121524]
[1745502982250,25.8819846,148.14,148.1,19.13121524]
[1745502982441,14.18,148.13,148.09,19.13121524]
[1745502983041,33.31121524,148.13,148.08,19.13121524]
[1745502984280,40.062384,148.13,148.09,19.13121524]
[1745502984967,20.93116876,148.13,148.07,1.6266]
[1745502985150,19.13121524,148.11,148.07,1.6266]
[1745502985344,20.93116876,148.13,148.07,20.75781524]
[1745502985345,19.13121524,148.12,148.07,20.75781524]
[1745502985545,19.13121524,148.12,148.08,19.13121524]
[1745502985741,20.93116876,148.13,148.07,8.38008361]
[1745502985742,20.93116876,148.13,148.09,19.13121524]
[1745502985979,14.18,148.13,148.11,19.13121524]
[1745502986358,14.18,148.13,148.12,19.13121524]
[1745502987484,14.18,148.13,148.11,19.13121524]
[1745502988052,14.18,148.13,148.12,19.13121524]
[1745502988746,14.18,148.13,148.12,25.88249798]
[1745502989874,0.063,148.16,148.13,1.5022]
[1745502990080,0.063,148.16,148.15,19.13121524]
[1745502990578,0.063,148.16,148.15,25.88113086]
[1745502990786,0.063,148.16,148.15,19.13121524]
[1745502992769,0.063,148.16,148.15,25.88113086]
[1745502992971,0.063,148.16,148.15,19.13121524]
[1745502993284,0.063,148.16,148.13,20.63341524]
[1745502993454,0.063,148.16,148.11,6.75148962]
[1745502993455,19.19421524,148.16,148.11,6.75148962]
[1745502993661,19.19421524,148.16,148.11,19.13121524]
[1745502994770,25.94405666,148.16,148.11,19.13121524]
[1745502996188,25.94405666,148.16,148.12,19.13121524]
[1745502996801,25.94405666,148.16,148.1,6.75203811]
[1745502996990,25.94405666,148.16,148.12,19.13121524]
[1745502997205,0.063,148.16,148.13,19.13121524]
[1745502997781,0.063,148.16,148.14,19.13121524]
[1745502997983,0.063,148.16,148.1,6.75203811]
[1745502998288,0.063,148.16,148.13,19.13121524]
[1745502998865,0.063,148.16,148.14,19.13121524]
[1745502999063,0.063,148.16,148.15,19.13121524]
[1745503000102,0.063,148.16,148.15,20.77051524]
[1745503000804,0.063,148.16,148.15,27.52043086]
[1745503001097,0.063,148.16,148.15,20.77051524]
[1745503001306,0.063,148.16,148.14,25.39331524]
[1745503001600,0.063,148.16,148.14,19.13121524]
[1745503002392,0.063,148.16,148.12,19.13121524]
[1745503002600,0.063,148.16,148.13,19.13121524]
[1745503003186,0.063,148.16,148.13,25.88188364]
[1745503004206,0.063,148.16,148.14,19.13121524]
[1745503004388,0.063,148.16,148.13,6.7506684]
[1745503004389,0.063,148.16,148.15,19.13121524]
[1745503004783,0.063,148.16,148.15,25.88113086]
[1745503005475,0.063,148.16,148.12,6.75128274]
[1745503005700,0.063,148.16,148.13,19.13121524]
[1745503006095,0.063,148.16,148.14,19.13121524]
[1745503006991,0.063,148.16,148.14,25.88147294]
[1745503007193,0.063,148.16,148.15,19.13121524]
[1745503011907,0.063,148.16,148.13,6.75066732]
[1745503012202,0.063,148.16,148.14,19.13121524]
[1745503012386,0.063,148.16,148.15,19.13121524]
[1745503014296,0.063,148.16,148.15,25.88113086]
[1745503016206,0.063,148.16,148.15,44.53077972]
[1745503016386,0.063,148.16,148.15,52.26927972]
[1745503016584,1e-08,148.16,148.15,52.26927972]
[1745503019423,0.063,148.22,148.19,27.5623]
[1745503019591,0.063,148.22,148.21,63.7808641]
[1745503019794,0.063,148.26,148.22,18.64964886]
[1745503019994,0.063,148.26,148.24,37.7808641]
[1745503021805,0.063,148.26,148.24,44.52668169]
[1745503023194,0.063,148.26,148.24,89.8000585]
[1745503023195,1e-08,148.25,148.24,89.8000585]
[1745503023399,1e-08,148.25,148.24,70.66884326]
[1745503023717,1e-08,148.26,148.25,20.21714886]
[1745503023918,1e-08,148.26,148.25,66.57344024]
[1745503025395,0.063,148.29,148.27,0.14216157]
[1745503025604,0.063,148.29,148.28,37.7808641]
[1745503027316,0.063,148.29,148.28,44.52486194]
[1745503028117,0.063,148.29,148.28,25.87521308]
[1745503029307,0.063,148.29,148.28,46.01551446]
[1745503030100,0.063,148.29,148.28,45.87335289]
[1745503030297,0.063,148.29,148.28,46.01551446]
[1745503032228,0.063,148.29,148.28,44.66702351]
[1745503032401,0.063,148.29,148.28,44.52486194]
[1745503033609,0.063,148.29,148.28,46.01542617]
[1745503034125,0.063,148.31,148.3,26.14216157]
[1745503034306,0.063,148.31,148.3,45.27337681]
[1745503035518,0.063,148.31,148.3,52.01646514]
[1745503035920,0.063,148.34,148.32,0.14216157]
[1745503036125,0.063,148.34,148.33,37.7808641]
[1745503036928,0.063,148.34,148.33,56.91207934]
[1745503037106,0.063,148.34,148.33,58.2599885]
[1745503037509,0.063,148.34,148.33,44.52258863]
[1745503038239,0.063,148.34,148.33,25.87293977]
[1745503038628,0.063,148.34,148.33,63.79596544]
[1745503038946,0.063,148.34,148.33,89.79596544]
[1745503039148,0.063,148.37,148.34,18.64964886]